lending/lending_fUSD_20240110
["ID","MTS","AMOUNT","RATE_DAILY","PERIOD"]
[311056789,1704891099602,-500.0,0.00031506,2]
[311056790,1704891099612,-810.04,0.00031506,2]
[311056791,1704891099621,-945.46,0.00031506,2]
[311056792,1704891099632,-884.9,0.00031506,2]
[311056793,1704891099642,-500.0,0.00031506,2]
[311056794,1704891099652,-566.84,0.00031506,2]
[311056795,1704891099661,-500.0,0.00031506,2]
[311056796,1704891099671,-500.0,0.00031506,2]
[311056797,1704891099680,-659.65,0.00031506,2]
[311056798,1704891099690,-1698.48,0.00031506,2]
[311056799,1704891099700,-1658.69,0.00031506,2]
[311056800,1704891099709,-1894.62,0.00031506,2]
[311056801,1704891099718,-530.43,0.00031506,2]
[311056802,1704891099728,-648.28,0.00031506,2]
[311056803,1704891099738,-635.25,0.00031506,2]
[311056804,1704891099749,-716.26,0.00031506,2]
[311056805,1704891099758,-500.0,0.00031506,2]
[311056806,1704891099768,-500.0,0.00031506,2]
[311056807,1704891099777,-659.2,0.00031506,2]
[311056808,1704891099787,-1075.0,0.00031506,2]
[311056809,1704891099797,-912.69,0.00031506,2]
[311056810,1704891099806,-500.0,0.00031506,2]
[311056811,1704891099816,-500.0,0.00031506,2]
[311056812,1704891099825,-500.0,0.00031506,2]
[311056813,1704891099835,-994.89,0.00031506,2]
[311056814,1704891099845,-536.25,0.00031506,2]
[311056815,1704891099855,-500.0,0.00031506,2]
[311056816,1704891099865,-535.04,0.00031506,2]
[311056817,1704891099875,-763.92,0.00031506,2]
[311056818,1704891099887,-1507.5,0.00031506,2]
[311056819,1704891099896,-1352.86,0.00031506,2]
[311056820,1704891099907,-500.0,0.00031506,2]
[311056821,1704891099917,-763.85,0.00031506,2]
[311056822,1704891099926,-500.0,0.00031506,2]
[311056823,1704891099939,-1058.85,0.00031506,2]
[311056824,1704891099949,-500.0,0.00031506,2]
[311056825,1704891099958,-1144.7,0.00031506,2]
[311056826,1704891099968,-592.06,0.00031506,2]
[311056827,1704891099977,-500.0,0.00031506,2]
[311056828,1704891099986,-982.41,0.00031506,2]
[311056829,1704891099997,-500.0,0.00031506,2]
[311056830,1704891100006,-500.0,0.00031506,2]
[311056831,1704891100016,-500.0,0.00031506,2]
[311056832,1704891100026,-960.45,0.00031506,2]
[311056833,1704891100035,-500.0,0.00031506,2]
[311056834,1704891100045,-1268.39,0.00031506,2]
[311056835,1704891100054,-585.65131499,0.00031506,2]
[311056836,1704891100064,-1176.82,0.00031506,2]
[311056837,1704891100073,-500.0,0.00031506,2]
[311056838,1704891100082,-1187.57,0.00031506,2]
[311056839,1704891100091,-1591.28,0.00031506,2]
[311056840,1704891100101,-500.0,0.00031506,2]
[311056841,1704891100110,-982.23,0.00031506,2]
[311056842,1704891100120,-960.81,0.00031506,2]
[311056843,1704891100129,-500.0,0.00031506,2]
[311056844,1704891100141,-1435.01,0.00031506,2]
[311056845,1704891100151,-1012.64,0.00031506,2]
[311056846,1704891100161,-1207.08,0.00031506,2]
[311056847,1704891100170,-771.19,0.00031506,2]
[311056848,1704891100180,-1395.58,0.00031506,2]
[311056849,1704891100190,-1179.08,0.00031506,2]
[311056850,1704891100201,-1128.18,0.00031506,2]
[311056851,1704891100211,-524.56,0.00031506,2]
[311056852,1704891100221,-1055.12,0.00031506,2]
[311056853,1704891100231,-620.01,0.00031506,2]
[311056854,1704891100240,-500.0,0.00031506,2]
[311056855,1704891100250,-1511.92,0.00031506,2]
[311056856,1704891100260,-835.1,0.00031506,2]
[311056857,1704891100270,-1185.27,0.00031506,2]
[311056858,1704891100280,-1387.63,0.00031506,2]
[311056859,1704891100290,-904.42,0.00031506,2]
[311056860,1704891100302,-500.0,0.00031506,2]
[311056861,1704891100314,-525.95,0.00031506,2]
[311056862,1704891100323,-1196.53,0.00031506,2]
[311056863,1704891100334,-500.0,0.00031506,2]
[311056864,1704891100343,-1787.03,0.00031506,2]
[311056865,1704891100353,-674.1,0.00031506,2]
[311056866,1704891100362,-1077.63,0.00031506,2]
[311056867,1704891100372,-755.38,0.00031506,2]
[311056868,1704891100384,-500.0,0.00031506,2]
[311056869,1704891100394,-581.62,0.00031506,2]
[311056870,1704891100407,-1257.2,0.00031506,2]
[311056871,1704891100416,-1024.85,0.00031506,2]
[311056872,1704891100425,-500.0,0.00031506,2]
[311056873,1704891100436,-500.0,0.00031506,2]
[311056874,1704891100445,-836.69,0.00031506,2]
[311056875,1704891100455,-500.0,0.00031506,2]
[311056876,1704891100464,-525.09,0.00031506,2]
[311056877,1704891100474,-500.0,0.00031506,2]
[311056878,1704891100483,-782.38,0.00031506,2]
[311056879,1704891100493,-1749.35,0.00031506,2]
[311056880,1704891100503,-1000.33,0.00031506,2]
[311056881,1704891100513,-604.42,0.00031506,2]
[311056882,1704891100523,-500.0,0.00031506,2]
[311056883,1704891100534,-500.0,0.00031506,2]
[311056884,1704891100543,-228.44072299,0.00031506,2]
[311056885,1704891100553,-765.38,0.00031506,2]
[311056886,1704891100562,-878.75,0.00031506,2]
[311056887,1704891100571,-500.0,0.00031506,2]
[311056888,1704891100581,-679.72,0.00031506,2]
[311056889,1704891100591,-1881.36,0.00031506,2]
[311056890,1704891100600,-500.0,0.00031506,2]
[311056891,1704891100610,-500.0,0.00031506,2]
[311056892,1704891100619,-631.79,0.00031506,2]
[311056893,1704891100629,-500.0,0.00031506,7]
[311056894,1704891100641,-500.0,0.00031506,2]
[311056895,1704891100652,-500.0,0.00031506,2]
[311056896,1704891100662,-1166.65,0.00031506,2]
[311056897,1704891100671,-756.6,0.00031506,2]
[311056898,1704891100681,-2844.34,0.00031506,2]
[311056899,1704891100691,-641.96,0.00031506,2]
[311056900,1704891100700,-500.0,0.00031506,2]
[311056901,1704891100710,-1044.01,0.00031506,2]
[311056902,1704891100722,-500.0,0.00031506,2]
[311056903,1704891100732,-500.0,0.00031506,2]
[311056904,1704891100741,-245.73790802,0.00031506,2]
[311056905,1704891100751,-1332.76,0.00031506,2]
[311056906,1704891100761,-500.0,0.00031506,2]
[311056907,1704891100770,-1244.23,0.00031506,2]
[311056908,1704891100780,-729.63,0.00031506,2]
[311056909,1704891100790,-500.0,0.00031506,2]
[311056910,1704891100800,-500.0,0.00031506,2]
[311056911,1704891100809,-757.76,0.00031506,2]
[311056912,1704891100819,-500.0,0.00031506,2]
[311056913,1704891100829,-500.0,0.00031506,2]
[311056914,1704891100838,-500.0,0.00031506,2]
[311056915,1704891100848,-1044.13,0.00031506,2]
[311056916,1704891100857,-1127.84,0.00031506,2]
[311056917,1704891100867,-1154.12,0.00031506,2]
[311056918,1704891100878,-551.43,0.00031506,2]
[311056919,1704891100890,-500.0,0.00031506,2]
[311056920,1704891100900,-1354.13,0.00031506,2]
[311056921,1704891100910,-500.0,0.00031506,2]
[311056922,1704891100919,-423.22315372,0.00031506,2]
[311056923,1704891100928,-500.0,0.00031506,2]
[311056924,1704891100938,-500.0,0.00031506,2]
[311056925,1704891100947,-638.51,0.00031506,2]
[311056926,1704891100957,-862.28,0.00031506,2]
[311056927,1704891100967,-1181.63,0.00031506,2]
[311056928,1704891100977,-757.94,0.00031506,2]
[311056929,1704891100987,-500.0,0.00031506,2]
[311056930,1704891100997,-1015.59,0.00031506,2]
[311056931,1704891101007,-848.07,0.00031506,2]
[311056932,1704891101017,-823.4,0.00031506,2]
[311056933,1704891101027,-783.14,0.00031506,2]
[311056934,1704891101037,-500.0,0.00031506,2]
[311056935,1704891101048,-500.0,0.00031506,2]
[311056936,1704891101058,-1634.17,0.00031506,2]
[311056937,1704891101067,-892.34,0.00031506,2]
[311056938,1704891101077,-500.0,0.00031506,2]
[311056939,1704891101087,-500.0,0.00031506,2]
[311056940,1704891101096,-500.0,0.00031506,2]
[311056941,1704891101400,-1731.94,0.00031506,2]
[311056942,1704891101410,-1097.53,0.00031506,2]
[311056943,1704891101420,-1300.74,0.00031506,2]
[311056944,1704891101430,-1118.35,0.00031506,2]
[311056945,1704891101440,-821.71,0.00031506,2]
[311056946,1704891101449,-1115.5,0.00031506,2]
[311056947,1704891101459,-799.47,0.00031506,2]
[311056948,1704891101469,-500.0,0.00031506,2]
[311056949,1704891101478,-500.0,0.00031506,2]
[311056950,1704891101489,-500.0,0.00031506,2]
[311056951,1704891101499,-500.0,0.00031506,2]
[311056952,1704891101508,-1438.57,0.00031506,2]
[311056953,1704891101518,-1466.84,0.00031506,2]
[311056954,1704891101528,-652.51,0.00031506,2]
[311056955,1704891101537,-500.0,0.00031506,2]
[311056956,1704891101547,-1106.08,0.00031506,2]
[311056957,1704891101557,-500.0,0.00031506,2]
[311056958,1704891101567,-1804.0,0.00031506,2]
[311056959,1704891101577,-337.93762703,0.00031506,2]
[311056960,1704891101588,-1166.35,0.00031506,2]
[311056961,1704891101597,-500.0,0.00031506,2]
[311056962,1704891101607,-1134.06,0.00031506,2]
[311056963,1704891101617,-1196.42,0.00031506,2]
[311056964,1704891101626,-545.73,0.00031506,2]
[311056965,1704891101637,-848.12,0.00031506,2]
[311056966,1704891101647,-500.0,0.00031506,2]
[311056967,1704891101658,-714.75,0.00031506,2]
[311056968,1704891101668,-500.0,0.00031506,2]
[311056969,1704891101678,-1566.38,0.00031506,2]
[311056970,1704891101687,-907.54,0.00031506,2]
[311056971,1704891101697,-556.57,0.00031506,2]
[311056972,1704891101706,-924.42,0.00031506,2]
[311056973,1704891101715,-1841.24,0.00031506,2]
[311056974,1704891101725,-500.0,0.00031506,2]
[311056975,1704891101736,-2743.08,0.00031506,2]
[311056976,1704891101746,-500.0,0.00031506,2]
[311056977,1704891101754,-500.0,0.00031506,2]
[311056978,1704891101764,-500.0,0.00031506,2]
[311056979,1704891101776,-1407.91,0.00031506,2]
[311056980,1704891101786,-627.59,0.00031506,2]
[311056981,1704891101796,-1648.35,0.00031506,2]
[311056982,1704891101807,-546.87,0.00031506,2]
[311056983,1704891101817,-574.07,0.00031506,2]
[311056984,1704891101827,-1615.48,0.00031506,2]
[311056985,1704891101837,-1687.92,0.00031506,2]
[311056986,1704891101848,-555.68,0.00031506,2]
[311056987,1704891101858,-997.75,0.00031506,2]
[311056988,1704891101868,-1436.16,0.00031506,2]
[311056989,1704891101878,-783.23,0.00031506,2]
[311056990,1704891101890,-500.0,0.00031506,2]
[311056991,1704891101901,-608.29,0.00031506,2]
[311056992,1704891101911,-893.83,0.00031506,2]
[311056993,1704891101922,-1132.03,0.00031506,2]
[311056994,1704891101932,-201.26870599,0.00031506,2]
[311056995,1704891101942,-1380.57,0.00031506,2]
[311056996,1704891101953,-933.87,0.00031506,2]
[311056997,1704891101963,-500.0,0.00031506,2]
[311056998,1704891101973,-500.0,0.00031506,2]
[311056999,1704891101983,-957.42,0.00031506,2]
[311057000,1704891101994,-995.9,0.00031506,2]
[311057001,1704891102004,-500.0,0.00031506,2]
[311057002,1704891102014,-1856.22,0.00031506,2]
[311057003,1704891102027,-895.94,0.00031506,2]
[311057004,1704891102038,-1480.74,0.00031506,2]
[311057005,1704891102050,-500.0,0.00031506,2]
[311057006,1704891102062,-500.0,0.00031506,2]
[311057007,1704891102073,-776.38,0.00031506,2]
[311057008,1704891102084,-1298.12,0.00031506,2]
[311057009,1704891102096,-333.27,0.00031506,2]
[311057010,1704891102106,-1188.98,0.00031506,2]
[311057011,1704891102117,-791.87,0.00031506,2]
[311057012,1704891102128,-500.0,0.00031506,2]
[311057013,1704891102145,-577.69,0.00031506,2]
[311057014,1704891102156,-700.71,0.00031506,2]
[311057015,1704891102167,-682.9,0.00031506,2]
[311057016,1704891102178,-1037.2,0.00031506,2]
[311057017,1704891102189,-500.0,0.00031506,2]
[311057018,1704891102199,-923.76,0.00031506,2]
[311057019,1704891102210,-1290.28,0.00031506,2]
[311057020,1704891102220,-694.02,0.00031506,2]
[311057021,1704891102231,-500.0,0.00031506,2]
[311057022,1704891102242,-672.12,0.00031506,2]
[311057023,1704891102253,-751.24,0.00031506,2]
[311057024,1704891102263,-791.74,0.00031506,2]
[311057025,1704891102275,-2135.41,0.00031506,2]
[311057026,1704891102286,-500.0,0.00031506,2]
[311057027,1704891102297,-630.74,0.00031506,2]
[311057028,1704891102308,-500.0,0.00031506,2]
[311057029,1704891102323,-1065.89,0.00031506,2]
[311057030,1704891102335,-500.0,0.00031506,2]
[311057031,1704891102346,-1611.31,0.00031506,2]
[311057032,1704891102357,-537.76,0.00031506,2]
[311057033,1704891102368,-500.0,0.00031506,2]
[311057034,1704891102378,-500.0,0.00031506,2]
[311057035,1704891102394,-500.0,0.00031506,2]
[311057036,1704891102405,-508.12,0.00031506,2]
[311057037,1704891102416,-500.0,0.00031506,2]
[311057038,1704891102428,-293.52479801,0.00031506,2]
[311057039,1704891102439,-1096.88,0.00031506,2]
[311057040,1704891102449,-500.0,0.00031506,2]
[311057041,1704891102460,-1235.12,0.00031506,2]
[311057042,1704891102471,-500.0,0.00031506,2]
[311057043,1704891102481,-1332.96,0.00031506,2]
[311057044,1704891102491,-1351.54,0.00031506,2]
[311057045,1704891102501,-500.0,0.00031506,2]
[311057046,1704891102512,-500.0,0.00031506,2]
[311057047,1704891102522,-525.51,0.00031506,2]
[311057048,1704891102533,-500.0,0.00031506,2]
[311057049,1704891102543,-500.0,0.00031506,2]
[311057050,1704891102554,-500.0,0.00031506,2]
[311057051,1704891102565,-500.0,0.00031506,2]
[311057052,1704891102575,-500.0,0.00031506,2]
[311057053,1704891102585,-500.0,0.00031506,2]
[311057054,1704891102595,-551.86,0.00031506,2]
[311057055,1704891102606,-2153.22,0.00031506,2]
[311057056,1704891102617,-500.0,0.00031506,2]
[311057057,1704891102627,-894.32,0.00031506,2]
[311057058,1704891102643,-1551.48,0.00031506,2]
[311057059,1704891102653,-656.22,0.00031506,2]
[311057060,1704891102663,-1823.35,0.00031506,2]
[311057061,1704891102673,-500.0,0.00031506,2]
[311057062,1704891102683,-500.0,0.00031506,2]
[311057063,1704891102694,-903.93,0.00031506,2]
[311057064,1704891102704,-784.54,0.00031506,2]
[311057065,1704891102714,-500.0,0.00031506,2]
[311057066,1704891102724,-1466.91,0.00031506,2]
[311057067,1704891102734,-1006.56,0.00031506,2]
[311057068,1704891102745,-1170.77,0.00031506,2]
[311057069,1704891102755,-612.56184859,0.00031506,2]
[311057070,1704891102766,-1655.17,0.00031506,2]
[311057071,1704891102776,-533.08,0.00031506,2]
[311057072,1704891102787,-3133.81,0.00031506,2]
[311057073,1704891102797,-761.32,0.00031506,2]
[311057074,1704891102807,-500.0,0.00031506,2]
[311057075,1704891102817,-584.69971036,0.00031506,2]
[311057076,1704891102827,-500.0,0.00031506,2]
[311057077,1704891102837,-500.0,0.00031506,2]
[311057078,1704891102847,-500.0,0.00031506,2]
[311057079,1704891102857,-500.0,0.00031506,2]
[311057080,1704891102867,-1368.59,0.00031506,2]
[311057081,1704891102877,-500.0,0.00031506,2]
[311057082,1704891102891,-661.49,0.00031506,2]
[311057083,1704891102901,-1618.49,0.00031506,2]
[311057084,1704891102911,-500.0,0.00031506,2]
[311057085,1704891102921,-696.22,0.00031506,2]
[311057086,1704891102945,-8919.11,0.00031506,2]
[311057087,1704891102967,-1000.0,0.00031506,2]
[311057088,1704891102990,-813.18,0.00031506,2]
[311057089,1704891103013,-500.0,0.00031506,2]
[311057090,1704891103033,-916.52,0.00031506,2]
[311057091,1704891103052,-484.51,0.00031506,2]
[311057092,1704891103072,-500.0,0.00031506,2]
[311057093,1704891103092,-500.0,0.00031506,2]
[311057094,1704891103113,-500.0,0.00031506,2]
[311057095,1704891103139,-1010.96,0.00031506,2]
[311057096,1704891103163,-500.0,0.00031506,2]
[311057097,1704891103179,-500.0,0.00031506,2]
[311057098,1704891103195,-669.44,0.00031506,2]
[311057099,1704891103216,-1654.81,0.00031506,2]
[311057100,1704891103230,-895.64,0.00031506,2]
[311057101,1704891103249,-5719.09,0.00031506,2]
[311057102,1704891103267,-500.0,0.00031506,2]
[311057103,1704891103285,-500.0,0.00031506,2]
[311057104,1704891103302,-3241.68,0.00031506,2]
[311057105,1704891103327,-2147.06,0.00031506,2]
[311057106,1704891103346,-500.0,0.00031506,2]
[311057107,1704891103366,-4583.07,0.00031506,2]
[311057108,1704891103387,-500.0,0.00031506,2]
[311057109,1704891103405,-4104.47,0.00031506,2]
[311057110,1704891103423,-500.0,0.00031506,2]
[311057111,1704891103443,-640.82441747,0.00031506,2]
[311057112,1704891103459,-1135.8,0.00031506,2]
[311057113,1704891103476,-4864.49,0.00031506,2]
[311057114,1704891103495,-1172.6,0.00031506,2]
[311057115,1704891103511,-1306.53,0.00031506,2]
[311057116,1704891103527,-500.0,0.00031506,2]
[311057117,1704891103543,-605.42,0.00031506,2]
[311057118,1704891103561,-500.0,0.00031506,2]
[311057119,1704891103578,-613.66,0.00031506,2]
[311057120,1704891103595,-1839.88,0.00031506,2]
[311057121,1704891103611,-3152.91,0.00031506,2]
[311057122,1704891103627,-500.0,0.00031506,2]
[311057123,1704891103643,-848.46,0.00031506,2]
[311057124,1704891103659,-1217.95,0.00031506,2]
[311057125,1704891103675,-3087.19,0.00031506,2]
[311057126,1704891103691,-1107.32,0.00031506,2]
[311057127,1704891103706,-1973.9,0.00031506,2]
[311057128,1704891103722,-1243.05,0.00031506,2]
[311057129,1704891103737,-500.0,0.00031506,2]
[311057130,1704891103754,-500.0,0.00031506,2]
[311057131,1704891103769,-998.38,0.00031506,2]
[311057132,1704891103784,-1702.03,0.00031506,2]
[311057133,1704891103800,-500.0,0.00031506,2]
[311057134,1704891103815,-492.1680824,0.00031506,2]
[311057135,1704891103830,-515.72,0.00031506,2]
[311057136,1704891103846,-500.0,0.00031506,2]
[311057137,1704891103863,-3061.74,0.00031506,2]
[311057138,1704891103878,-500.0,0.00031506,2]
[311057139,1704891103897,-3064.76,0.00031506,2]
[311057140,1704891103914,-500.0,0.00031506,2]
[311057141,1704891103930,-996.01,0.00031506,2]
[311057142,1704891103947,-1068.18,0.00031506,2]
[311057143,1704891103964,-589.91488737,0.00031506,2]
[311057144,1704891103980,-1153.97,0.00031506,2]
[311057145,1704891103997,-6469.31,0.00031506,2]
[311057146,1704891104015,-500.0,0.00031506,2]
[311057147,1704891104031,-500.0,0.00031506,2]
[311057148,1704891104048,-1516.45,0.00031506,2]
[311057149,1704891104064,-20572.41,0.00031506,2]
[311057150,1704891104081,-835.36,0.00031506,2]
[311057151,1704891104102,-508.77,0.00031506,2]
[311057152,1704891104120,-876.85,0.00031506,2]
[311057153,1704891104140,-1211.96,0.00031506,2]
[311057154,1704891104157,-8935.6,0.00031506,2]
[311057155,1704891104175,-500.0,0.00031506,2]
[311057156,1704891104193,-749.11,0.00031506,2]
[311057157,1704891104211,-500.0,0.00031506,2]
[311057158,1704891104229,-500.0,0.00031506,2]
[311057159,1704891104245,-3428.01,0.00031506,2]
[311057160,1704891104268,-500.0,0.00031506,2]
[311057161,1704891104285,-500.0,0.00031506,2]
[311057162,1704891104305,-1411.74,0.00031506,2]
[311057163,1704891104322,-51777.21,0.00031506,2]
[311057164,1704891104340,-500.0,0.00031506,2]
[311057165,1704891104357,-2414.62,0.00031506,2]
[311057166,1704891104374,-28702.52,0.00031506,2]
[311057167,1704891104394,-1449.33,0.00031506,2]
[311057168,1704891104412,-500.0,0.00031506,2]
[311057169,1704891104429,-500.0,0.00031506,2]
[311057170,1704891104446,-729.81,0.00031506,2]
[311057171,1704891104463,-1741.33,0.00031506,2]
[311057172,1704891104480,-500.0,0.00031506,2]
[311057173,1704891104497,-18242.51,0.00031506,2]
[311057174,1704891104513,-982.47,0.00031506,2]
[311057175,1704891104529,-3044.12,0.00031506,2]
[311057176,1704891104546,-7322.32,0.00031506,2]
[311057177,1704891104563,-1198.42,0.00031506,2]
[311057178,1704891104578,-883.98,0.00031506,2]
[311057179,1704891104594,-669.65,0.00031506,2]
[311057180,1704891104610,-936.43,0.00031506,2]
[311057181,1704891104626,-1931.34,0.00031506,2]
[311057182,1704891104644,-500.0,0.00031506,2]
[311057183,1704891104659,-596.34,0.00031506,2]
[311057184,1704891104674,-5311.52,0.00031506,2]
[311057185,1704891104690,-591.04,0.00031506,2]
[311057186,1704891104706,-756.46,0.00031506,2]
[311057187,1704891104722,-1716.44,0.00031506,2]
[311057188,1704891104737,-500.0,0.00031506,2]
[311057189,1704891104753,-1935.34,0.00031506,2]
[311057190,1704891104769,-1335.68,0.00031506,2]
[311057191,1704891104784,-896.69,0.00031506,2]
[311057192,1704891104801,-11436.48,0.00031506,2]
[311057193,1704891104817,-630.3,0.00031506,2]
[311057194,1704891104833,-5273.56,0.00031506,2]
[311057195,1704891104849,-7205.25,0.00031506,2]
[311057196,1704891104866,-738.84,0.00031506,2]
[311057197,1704891104881,-500.0,0.00031506,2]
[311057198,1704891104899,-1192.7,0.00031506,2]
[311057199,1704891104915,-962.89,0.00031506,2]
[311057200,1704891104932,-717.02,0.00031506,2]
[311057201,1704891104947,-1285.43,0.00031506,2]
[311057202,1704891104964,-6876.74,0.00031506,2]
[311057203,1704891104980,-6606.78,0.00031506,2]
[311057204,1704891104997,-500.0,0.00031506,2]
[311057205,1704891105013,-1732.97,0.00031506,2]
[311057206,1704891105030,-7057.36,0.00031506,2]
[311057207,1704891105046,-2245.33,0.00031506,2]
[311057208,1704891105062,-500.0,0.00031506,2]
[311057209,1704891105078,-1567.49,0.00031506,2]
[311057210,1704891105094,-500.0,0.00031506,2]
[311057211,1704891105109,-790.0,0.00031506,2]
[311057212,1704891105125,-932.57,0.00031506,2]
[311057213,1704891105141,-2499.19,0.00031506,2]
[311057214,1704891105158,-500.0,0.00031506,2]
[311057215,1704891105174,-1333.7,0.00031506,2]
[311057216,1704891105191,-2921.42,0.00031506,2]
[311057217,1704891105208,-4128.32,0.00031506,2]
[311057218,1704891105225,-500.0,0.00031506,2]
[311057219,1704891105241,-783.63,0.00031506,2]
[311057220,1704891105250,-682.44,0.00031506,2]
[311057221,1704891105260,-1293.22,0.00031506,2]
[311057222,1704891105270,-1047.14,0.00031506,2]
[311057223,1704891105280,-3328.34,0.00031506,2]
[311057224,1704891105289,-500.0,0.00031506,2]
[311057225,1704891105299,-953.47,0.00031506,2]
[311057226,1704891105310,-2153.92,0.00031506,2]
[311057227,1704891105693,-239.65567607,0.00031506,2]
[311057228,1704891105722,-2896.37,0.00031506,2]
[311057229,1704891105746,-668.72,0.00031506,2]
[311057230,1704891105769,-3025.67,0.00031506,2]
[311057231,1704891105778,-1350.56,0.00031506,2]
[311057232,1704891105789,-2341.12,0.00031506,2]
[311057233,1704891105798,-500.0,0.00031506,2]
[311057234,1704891105807,-2098.62,0.00031506,2]
[311057235,1704891105817,-703.2,0.00031506,2]
[311057236,1704891105826,-1930.74,0.00031506,2]
[311057237,1704891105836,-500.0,0.00031506,2]
[311057238,1704891105846,-335.44893846,0.00031506,2]
[311057239,1704891105857,-5339.67,0.00031506,2]
[311057240,1704891105867,-500.0,0.00031506,2]
[311057241,1704891105877,-500.0,0.00031506,2]
[311057242,1704891105889,-503.67,0.00031506,2]
[311057243,1704891105900,-4486.53,0.00031506,2]
[311057244,1704891105911,-3990.83,0.00031506,2]
[311057245,1704891105921,-1093.38,0.00031506,2]
[311057246,1704891105931,-843.02,0.00031506,2]
[311057247,1704891105943,-3222.77,0.00031506,2]
[311057248,1704891105955,-319.095659,0.00031506,2]
[311057249,1704891105965,-915.67,0.00031506,2]
[311057250,1704891105975,-500.0,0.00031506,2]
[311057251,1704891105987,-500.0,0.00031506,2]
[311057252,1704891105997,-6104.89,0.00031506,2]
[311057253,1704891106006,-723.37,0.00031506,2]
[311057254,1704891106015,-500.0,0.00031506,2]
[311057255,1704891106025,-500.0,0.00031506,2]
[311057256,1704891106035,-1149.9,0.00031506,2]
[311057257,1704891106045,-500.0,0.00031506,2]
[311057258,1704891106055,-5798.03,0.00031506,2]
[311057259,1704891106065,-500.0,0.00031506,2]
[311057260,1704891106075,-4625.49,0.00031506,2]
[311057261,1704891106085,-550.5,0.00031506,2]
[311057262,1704891106097,-1882.58,0.00031506,2]
[311057263,1704891106107,-500.0,0.00031506,2]
[311057264,1704891106118,-13391.47,0.00031506,2]
[311057265,1704891106128,-1438.47,0.00031506,2]
[311057266,1704891106140,-500.0,0.00031506,2]
[311057267,1704891106150,-3391.89,0.00031506,2]
[311057268,1704891106160,-17056.02,0.00031506,2]
[311057269,1704891106169,-1903.64,0.00031506,2]
[311057270,1704891106179,-1223.46,0.00031506,2]
[311057271,1704891106188,-291.82230654,0.00031506,2]
[311057272,1704891106197,-535.17,0.00031506,2]
[311057273,1704891106207,-500.0,0.00031506,2]
[311057274,1704891106217,-1447.74,0.00031506,2]
[311057275,1704891106227,-500.0,0.00031506,2]
[311057276,1704891106237,-903.74,0.00031506,2]
[311057277,1704891106247,-1181.32,0.00031506,2]
[311057278,1704891106257,-897.9,0.00031506,2]
[311057279,1704891106267,-500.0,0.00031506,2]
[311057280,1704891106276,-3416.68,0.00031506,2]
[311057281,1704891106286,-500.0,0.00031506,2]
[311057282,1704891106296,-2765.04,0.00031506,2]
[311057283,1704891106307,-1323.99,0.00031506,2]
[311057284,1704891106316,-605.66,0.00031506,2]
[311057285,1704891106331,-500.0,0.00031506,2]
[311057286,1704891106341,-1240.59,0.00031506,2]
[311057287,1704891106351,-656.06,0.00031506,2]
[311057288,1704891106361,-1858.38,0.00031506,2]